[Event "Chessable English Open-ch 2022"]
[Site "Kenilwoth"]
[Date "2022.05.22"]
[Round "7.15"]
[White "Pert, Max"]
[Black "Watson, Jacob"]
[Result "0-1"]
[ECO "D27"]
[WhiteElo "1634"]
[BlackElo "1922"]
[Annotator "TA"]
[PlyCount "114"]
[EventDate "2022.05.18"]
[EventType "swiss"]
[EventCountry "ENG"]
[SourceTitle "playchess.com"]
[Source "ChessBase"]
[SourceQuality "1"]
[TimeControl "5400+30"]

{[%evp 15,114,27,48,8,8,8,15,15,15,-8,9,-77,-59,-156,0,0,0,0,0,0,0,-5,0,-3,0,0,19,23,8,0,0,0,18,0,0,0,0,0,76,0,0,0,0,0,0,0,-3,-17,-7,-81,0,-21,-14,-49,-45,-51,-50,-56,-56,-47,-44,-59,-29,-125,-35,-128,-14,-34,0,0,0,-105,-105,-109,-46,-842,-749,-857,-835,-714,-591,-29976,-29979,-29979,-29980,-29980,-29981,-29981,-29982,-29982,-29983,-29983,-29984,-29984,-29985,-29985,-29986,-29986,-29987,-29987,-29988]} 1. d4 {[%emt 0:00:01]} d5 {[%emt 0:00:16]} 2. Nf3 {[%emt 1:31:29]} Nf6 {[%emt 0:00:34]} 3. c4 {[%emt 0:00:00]} dxc4 {[%emt 0:00:44]} 4. e3 {[%emt 0:00:00]} e6 {[%emt 0:00:13]} 5. Bxc4 {[%emt 0:00:00]} a6 {[%emt 0:00:30]} 6. Bb3 {[%emt 0:00:00]} c5 {[%emt 0:01:25]} 7. O-O {[%emt 0:00:00]} Nc6 {[%emt 0:02:22]} 8. Qe2 {[%emt 0:00:00]} Qc7 {[%emt 0:01:06] [#]} 9. Nbd2 $146 {[%emt 0:00:00] D27: Queen's Gambit Accepted: Classical main line: 7 e4!? and 7 a4.} ({Predecessor:} 9. Nc3 Bd6 10. Rd1 O-O 11. h3 Rd8 12. dxc5 Bxc5 13. Rxd8+ Qxd8 14. e4 Nd4 15. Qd1 Nxf3+ 16. Qxf3 Bd7 {½-½ (84) Shulman,Y (2632)-Nakamura,H (2701) Saint Louis 2009}) 9... Be7 {[%emt 0:01:25]} 10. dxc5 {[%emt 0:00:00]} Bxc5 {[%emt 0:00:56]} 11. Rd1 {[%emt 0:00:00] The position is equal.} O-O {[%emt 0:01:37]} 12. Nf1 {[%emt 0:00:00]} e5 {[%emt 0:04:15][%cal Be6e5,Be5e4][%mdl 32]} 13. Ng3 {[%emt 0:00:00]} (13. h3 $11 {keeps the balance.}) 13... e4 $1 $17 {[%emt 0:07:16]} 14. Nd2 {[%emt 0:00:00]} (14. Nd4 $15) 14... Re8 $2 {[%emt 0:02:00]} (14... Bg4 $17 15. f3 exf3 16. gxf3 Be6) 15. h3 $11 {[%emt 0:00:00]} Bd6 {[%emt 0:06:51]} 16. Ndf1 {[%emt 0:00:00]} Be6 {[%emt 0:07:43]} 17. Bxe6 {[%emt 0:00:00]} Rxe6 {[%emt 0:00:11]} 18. Bd2 {[%emt 0:00:00][%cal Bc1d2,Bd2e1,Be1c3][%mdl 32]} Be5 {[%emt 0:01:03]} 19. Be1 {[%emt 0:00:00]} Qb6 {[%emt 0:03:57]} 20. Rac1 {[%emt 0:00:00]} Rae8 {[%emt 0:08:04]} (20... Bxb2 $2 21. Rb1 $18) 21. Bc3 {[%emt 0:00:00]} g6 {[%emt 0:01:42]} 22. b3 {[%emt 0:00:00]} h5 {[%emt 0:12:44]} 23. Qb2 {[%emt 0:00:00]} Qb5 {[%emt 0:02:20]} 24. a4 {[%emt 0:00:00]} Bxc3 {[%emt 0:00:40]} 25. Qxc3 {[%emt 0:00:00]} Qg5 {[%emt 0:01:39]} 26. Ne2 {[%emt 0:00:00]} Re5 {[%emt 0:07:00]} (26... Nd5 $11 27. Qd2 Rd8) 27. Nf4 {[%emt 0:00:00]} (27. Nd4 $1 $16) 27... Nd5 {[%emt 0:01:43]} 28. Nxd5 {[%emt 0:00:00]} Rxd5 {[%emt 0:00:05]} 29. Ng3 {[%emt 0:00:00][%cal Bf1g3,Bg3e2,Be2c3][%mdl 32]} h4 $36 {[%emt 0:03:31][%mdl 2048] Black is more active.} 30. Ne2 {[%emt 0:00:00]} Red8 {[%emt 0:01:39]} 31. Rxd5 {[%emt 0:00:00]} Qxd5 {[%emt 0:01:51]} 32. Qc4 {[%emt 0:00:00]} (32. Nf4 $11 Qe5 33. Qc2) 32... g5 {[%emt 0:04:51] Black is more active.} (32... Qxc4 $17 33. bxc4 Rd2) 33. Qxd5 {[%emt 0:00:00]} Rxd5 {[%emt 0:00:06][%mdl 4096] Endgame KRN-KRN} 34. Nc3 {[%emt 0:00:00][%csl LRd5,LRe4]} Rc5 {[%emt 0:00:13]} 35. Ne2 {[%emt 0:00:00]} Rxc1+ {[%emt 0:01:13]} 36. Nxc1 $15 {[%emt 0:00:00] KN-KN} Kg7 {[%emt 0:00:48]} 37. Kf1 {[%emt 0:00:00]} Kf6 {[%emt 0:00:27]} 38. Ke2 {[%emt 0:00:00]} Ke5 {[%emt 0:01:01]} 39. Kd2 {[%emt 0:00:00]} (39. g3 $11) 39... f5 {[%emt 0:01:02]} (39... Nb4 $17) 40. Kc3 {[%emt 0:00:00]} ({Better is} 40. Ne2 $15) 40... Kd5 {[%emt 0:00:15]} (40... a5 $1 $17) 41. Ne2 {[%emt 0:00:00]} b5 {[%emt 0:00:41]} 42. axb5 {[%emt 0:00:00]} axb5 {[%emt 0:00:07]} 43. b4 {[%emt 0:00:00]} (43. g3 $11 {remains equal.}) 43... Ke5 $17 {[%emt 0:00:46]} 44. Kb3 {[%emt 0:00:00] [#]} f4 $1 {[%emt 0:00:39]} 45. Ng1 {[%emt 0:00:00][%mdl 8192] Prevents f3. White does not recover from this.} (45. exf4+ $15 gxf4 46. Kc3) 45... Ne7 $19 {[%emt 0:00:50]} 46. exf4+ {[%emt 0:00:00]} gxf4 {[%emt 0:00:13] Hoping for ...Nd5.} 47. Ne2 {[%emt 0:00:00] [#]} Nd5 $1 {[%emt 0:00:52] White must now prevent ...f3.} 48. Nc3 {[%emt 0:00:00]} Nxc3 {[%emt 0:00:42] Black mates.} 49. Kxc3 {[%emt 0:00:00] KP-KP} Kd5 {[%emt 0:00:09]} 50. f3 {[%emt 0:00:00]} e3 {[%emt 0:00:12]} 51. Kd3 {[%emt 0:00:00]} e2 {[%emt 0:00:04]} 52. Kxe2 {[%emt 0:00:00]} Kc4 {[%emt 0:00:03]} 53. g4 {[%emt 0:00:00]} fxg3 {[%emt 0:00:07]} 54. f4 {[%emt 0:00:00]} Kxb4 {[%emt 0:00:17]} 55. f5 {[%emt 0:00:00]} Kc5 {[%emt 0:00:15]} 56. f6 {[%emt 0:00:00]} Kd6 {[%emt 0:00:06]} 57. f7 {[%emt 0:00:00]} Ke7 {[%emt 0:00:02] Weighted Error Value: White=0.53/Black=0.19 (very precise)} 0-1